[Event "*** Titled Tuesday Blitz"]
[Site "Chess.com"]
[Date "2021.03.02"]
[Round "3"]
[White "A-S-00"]
[Black "hellokostya"]
[Result "0-1"]
[WhiteElo "2390"]
[BlackElo "2577"]
[TimeControl "180+1"]
[EndTime "10:28:46 PST"]
[Termination "hellokostya won by resignation"]

1. d4 {[%clk 0:03:00.9]} 1... Nf6 {[%clk 0:02:59.5]} 2. c4 {[%clk 0:03:00.5]}
2... g6 {[%clk 0:03:00.2]} 3. Nf3 {[%clk 0:02:59.9]} 3... Bg7 {[%clk 0:03:00.2]}
4. Nc3 {[%clk 0:03:00.5]} 4... O-O {[%clk 0:03:00.5]} 5. e4 {[%clk 0:03:01.1]}
5... d6 {[%clk 0:03:01.1]} 6. Be2 {[%clk 0:03:01.6]} 6... c6 {[%clk 0:02:59.7]}
7. O-O {[%clk 0:03:00.5]} 7... e5 {[%clk 0:03:00.3]} 8. dxe5 {[%clk 0:02:58.2]}
8... dxe5 {[%clk 0:03:00.1]} 9. Qxd8 {[%clk 0:02:58.8]} 9... Rxd8 {[%clk
0:03:00.1]} 10. Bg5 {[%clk 0:02:53]} 10... Re8 {[%clk 0:02:50.8]} 11. Nd2 {[%clk
0:02:46.4]} 11... Na6 {[%clk 0:02:45.8]} 12. f3 {[%clk 0:02:33.7]} 12... Nc5
{[%clk 0:02:43.3]} 13. Be3 {[%clk 0:02:30.1]} 13... Ne6 {[%clk 0:02:43.4]} 14.
Nb3 {[%clk 0:02:29.7]} 14... Bf8 {[%clk 0:02:28.4]} 15. Rad1 {[%clk 0:02:16.7]}
15... Nd7 {[%clk 0:02:22.8]} 16. Na4 {[%clk 0:01:56.1]} 16... Be7 {[%clk
0:02:04.4]} 17. g3 {[%clk 0:01:54.5]} 17... h5 {[%clk 0:02:02.3]} 18. Kg2 {[%clk
0:01:51.5]} 18... Kg7 {[%clk 0:01:59.5]} 19. f4 {[%clk 0:01:50.5]} 19... h4
{[%clk 0:01:39.9]} 20. Bg4 {[%clk 0:01:35.7]} 20... Nf6 {[%clk 0:01:29.3]} 21.
Bf3 {[%clk 0:01:20.6]} 21... exf4 {[%clk 0:01:28.8]} 22. gxf4 {[%clk 0:01:20.5]}
22... h3+ {[%clk 0:01:29.2]} 23. Kh1 {[%clk 0:01:10]} 23... Rh8 {[%clk
0:01:11.5]} 24. f5 {[%clk 0:00:37.9]} 24... Nf8 {[%clk 0:01:10.9]} 25. e5 {[%clk
0:00:35.6]} 25... Bxf5 {[%clk 0:01:10.5]} 26. exf6+ {[%clk 0:00:35.6]} 26...
Bxf6 {[%clk 0:01:11.4]} 27. Bd4 {[%clk 0:00:20.1]} 27... Ne6 {[%clk 0:01:10.1]}
28. Bxf6+ {[%clk 0:00:19.7]} 28... Kxf6 {[%clk 0:01:11]} 29. Bg4 {[%clk
0:00:17.2]} 29... Rh4 {[%clk 0:01:04.6]} 30. Bxf5 {[%clk 0:00:17.3]} 30... gxf5
{[%clk 0:01:05.5]} 31. Nac5 {[%clk 0:00:15]} 31... Rxc4 {[%clk 0:01:03]} 32.
Nxb7 {[%clk 0:00:14]} 32... Rc2 {[%clk 0:01:01]} 33. Nd6 {[%clk 0:00:12.8]}
33... Rxb2 {[%clk 0:00:59.9]} 34. Rxf5+ {[%clk 0:00:12.7]} 34... Kg6 {[%clk
0:00:49.6]} 35. Rg1+ {[%clk 0:00:12.1]} 35... Rg2 {[%clk 0:00:50.2]} 36. Rgf1
{[%clk 0:00:06.9]} 36... Ng5 {[%clk 0:00:46.7]} 37. Rf6+ {[%clk 0:00:06.4]}
37... Kh5 {[%clk 0:00:45.7]} 38. Nxf7 {[%clk 0:00:05]} 38... Nxf7 {[%clk
0:00:41.6]} 39. Rxf7 {[%clk 0:00:05.9]} 39... Rag8 {[%clk 0:00:41.8]} 40. Rh7+
{[%clk 0:00:05.1]} 40... Kg6 {[%clk 0:00:41.6]} 41. Rh4 {[%clk 0:00:04.9]} 41...
Rxa2 {[%clk 0:00:40.6]} 42. Rg4+ {[%clk 0:00:04.6]} 42... Kh7 {[%clk 0:00:40.5]}
43. Rxg8 {[%clk 0:00:02.3]} 43... Kxg8 {[%clk 0:00:41.4]} 44. Rc1 {[%clk
0:00:02.3]} 44... Rb2 {[%clk 0:00:40.5]} 45. Nd4 {[%clk 0:00:02.4]} 45... c5
{[%clk 0:00:38.6]} 46. Ne6 {[%clk 0:00:02.9]} 46... c4 {[%clk 0:00:38.2]} 47.
Nf4 {[%clk 0:00:03.5]} 47... c3 {[%clk 0:00:36.8]} 48. Nd3 {[%clk 0:00:03.3]}
48... Rd2 {[%clk 0:00:34.4]} 49. Nb4 {[%clk 0:00:02.5]} 49... a5 {[%clk
0:00:33.2]} 50. Nc6 {[%clk 0:00:01.6]} 50... c2 {[%clk 0:00:32.3]} 51. Kg1
{[%clk 0:00:02.4]} 51... Rd1+ {[%clk 0:00:32.4]} 0-1

[Event "*** Titled Tuesday Blitz"]
[Site "Chess.com"]
[Date "2021.03.02"]
[Round "3"]
[White "NateSolon"]
[Black "stasiek18"]
[Result "1-0"]
[WhiteElo "2590"]
[BlackElo "2397"]
[TimeControl "180+1"]
[EndTime "10:28:47 PST"]
[Termination "NateSolon won on time"]

1. d4 {[%clk 0:03:00.9]} 1... d6 {[%clk 0:02:59.4]} 2. e4 {[%clk 0:03:00]} 2...
Nf6 {[%clk 0:02:58.9]} 3. Nc3 {[%clk 0:03:00.1]} 3... g6 {[%clk 0:02:59.4]} 4.
f4 {[%clk 0:02:57.8]} 4... Bg7 {[%clk 0:02:59.2]} 5. Bd3 {[%clk 0:02:57.9]} 5...
O-O {[%clk 0:02:59.1]} 6. Nf3 {[%clk 0:02:58.2]} 6... Nc6 {[%clk 0:02:57.8]} 7.
O-O {[%clk 0:02:51.1]} 7... Bg4 {[%clk 0:02:52.2]} 8. Be2 {[%clk 0:02:49.7]}
8... Nd7 {[%clk 0:02:38.5]} 9. Be3 {[%clk 0:02:44.5]} 9... Bxf3 {[%clk
0:02:18.8]} 10. Bxf3 {[%clk 0:02:44]} 10... e5 {[%clk 0:02:19.7]} 11. fxe5
{[%clk 0:02:42.6]} 11... dxe5 {[%clk 0:02:20.6]} 12. d5 {[%clk 0:02:43]} 12...
Nd4 {[%clk 0:02:20.4]} 13. Qd2 {[%clk 0:02:36.1]} 13... c6 {[%clk 0:02:07.1]}
14. Rad1 {[%clk 0:02:33.7]} 14... Qb6 {[%clk 0:02:00.7]} 15. b3 {[%clk
0:02:22.6]} 15... Nc5 {[%clk 0:01:53.1]} 16. Kh1 {[%clk 0:02:16.9]} 16... a5
{[%clk 0:01:47.4]} 17. Qf2 {[%clk 0:02:00.2]} 17... a4 {[%clk 0:01:37.7]} 18.
Ne2 {[%clk 0:01:51.4]} 18... axb3 {[%clk 0:01:23]} 19. c3 {[%clk 0:01:15.8]}
19... Rxa2 {[%clk 0:01:05.7]} 20. cxd4 {[%clk 0:01:14.3]} 20... exd4 {[%clk
0:01:02]} 21. Bxd4 {[%clk 0:01:14.5]} 21... Bxd4 {[%clk 0:01:01.3]} 22. Qxd4
{[%clk 0:01:15.4]} 22... Nd7 {[%clk 0:00:52]} 23. dxc6 {[%clk 0:01:12.5]} 23...
Qxd4 {[%clk 0:00:44.1]} 24. Nxd4 {[%clk 0:01:09.2]} 24... bxc6 {[%clk
0:00:40.2]} 25. Nxb3 {[%clk 0:01:08.7]} 25... Ne5 {[%clk 0:00:39.7]} 26. Nc5
{[%clk 0:01:05.4]} 26... Rb8 {[%clk 0:00:37]} 27. Nd7 {[%clk 0:01:05.2]} 27...
Nxd7 {[%clk 0:00:33.8]} 28. Rxd7 {[%clk 0:01:06.1]} 28... Rbb2 {[%clk
0:00:29.8]} 29. Rc7 {[%clk 0:01:04.4]} 29... Rf2 {[%clk 0:00:23.9]} 30. Kg1
{[%clk 0:00:55.8]} 30... Rxf1+ {[%clk 0:00:21.7]} 31. Kxf1 {[%clk 0:00:56.7]}
31... Rc2 {[%clk 0:00:21.5]} 32. h4 {[%clk 0:00:46.5]} 32... h5 {[%clk
0:00:16.5]} 33. Kg1 {[%clk 0:00:46.5]} 33... Kg7 {[%clk 0:00:11.9]} 34. e5
{[%clk 0:00:44.1]} 34... Rc1+ {[%clk 0:00:06.1]} 35. Kh2 {[%clk 0:00:44]} 35...
Re1 {[%clk 0:00:06.6]} 36. Rxc6 {[%clk 0:00:32.5]} 36... Rxe5 {[%clk 0:00:06.4]}
37. Kg3 {[%clk 0:00:32.6]} 37... Ra5 {[%clk 0:00:06]} 38. Rc7 {[%clk 0:00:32.5]}
38... Re5 {[%clk 0:00:03.8]} 39. Rd7 {[%clk 0:00:32.4]} 39... Ra5 {[%clk
0:00:02.6]} 40. Bd5 {[%clk 0:00:32.5]} 40... Ra3+ {[%clk 0:00:03.1]} 41. Kh2
{[%clk 0:00:31]} 41... Ra4 {[%clk 0:00:03.4]} 42. Rxf7+ {[%clk 0:00:29.4]} 42...
Kh6 {[%clk 0:00:04.3]} 43. g3 {[%clk 0:00:26.9]} 43... Rd4 {[%clk 0:00:04.8]}
44. Bg2 {[%clk 0:00:25]} 44... Rd2 {[%clk 0:00:02.7]} 45. Kh3 {[%clk 0:00:25]}
45... Rd3 {[%clk 0:00:01.5]} 46. Rb7 {[%clk 0:00:23.3]} 46... Rc3 {[%clk
0:00:01.2]} 47. Rb6 {[%clk 0:00:22.8]} 1-0

[Event "*** Titled Tuesday Blitz"]
[Site "Chess.com"]
[Date "2021.03.02"]
[Round "3"]
[White "GregShahade"]
[Black "Fortitudine"]
[Result "1-0"]
[WhiteElo "2641"]
[BlackElo "2336"]
[TimeControl "180+1"]
[EndTime "10:28:47 PST"]
[Termination "GregShahade won by checkmate"]

1. e4 {[%clk 0:03:00.9]} 1... c5 {[%clk 0:02:58.4]} 2. Nf3 {[%clk 0:03:01.1]}
2... d6 {[%clk 0:02:57.5]} 3. d4 {[%clk 0:03:01.8]} 3... cxd4 {[%clk 0:02:58.4]}
4. Nxd4 {[%clk 0:03:02.5]} 4... Nf6 {[%clk 0:02:58.6]} 5. Nc3 {[%clk 0:03:03.2]}
5... Nc6 {[%clk 0:02:58.5]} 6. f3 {[%clk 0:03:02.6]} 6... e5 {[%clk 0:02:58.3]}
7. Nb3 {[%clk 0:03:03.3]} 7... a5 {[%clk 0:02:58.8]} 8. Bb5 {[%clk 0:03:01.9]}
8... Be7 {[%clk 0:02:58.7]} 9. Be3 {[%clk 0:03:01.7]} 9... O-O {[%clk
0:02:58.5]} 10. Qd2 {[%clk 0:03:01.7]} 10... Be6 {[%clk 0:02:33.5]} 11. Rd1
{[%clk 0:03:01.3]} 11... Qc7 {[%clk 0:02:27]} 12. O-O {[%clk 0:02:51.9]} 12...
Rfd8 {[%clk 0:02:24.4]} 13. Nd5 {[%clk 0:02:47.6]} 13... Bxd5 {[%clk 0:02:21.9]}
14. exd5 {[%clk 0:02:47]} 14... Nb8 {[%clk 0:02:18.9]} 15. c4 {[%clk 0:02:38.9]}
15... a4 {[%clk 0:02:14.8]} 16. Nc1 {[%clk 0:02:37.7]} 16... Nbd7 {[%clk
0:02:14]} 17. Ne2 {[%clk 0:02:30.4]} 17... Nc5 {[%clk 0:02:10.3]} 18. Nc3 {[%clk
0:02:29.9]} 18... Rf8 {[%clk 0:01:48.6]} 19. Qf2 {[%clk 0:02:10.3]} 19... Nfd7
{[%clk 0:01:45.7]} 20. f4 {[%clk 0:02:04.7]} 20... exf4 {[%clk 0:01:37.9]} 21.
Bxf4 {[%clk 0:02:05]} 21... Bf6 {[%clk 0:01:35.6]} 22. Qg3 {[%clk 0:01:57]}
22... Be5 {[%clk 0:01:32.2]} 23. Kh1 {[%clk 0:01:52.5]} 23... Bxf4 {[%clk
0:01:30.7]} 24. Qxf4 {[%clk 0:01:49.4]} 24... Ne5 {[%clk 0:01:30.3]} 25. Qf5
{[%clk 0:01:36.5]} 25... Qc8 {[%clk 0:01:20.9]} 26. Qxc8 {[%clk 0:01:15.4]}
26... Rfxc8 {[%clk 0:01:21.8]} 27. Rb1 {[%clk 0:01:07]} 27... g6 {[%clk
0:01:15.7]} 28. Rf6 {[%clk 0:00:56.2]} 28... Rd8 {[%clk 0:01:13.7]} 29. Kg1
{[%clk 0:00:54.5]} 29... Kg7 {[%clk 0:01:12.9]} 30. Rff1 {[%clk 0:00:53.7]}
30... f5 {[%clk 0:01:12.7]} 31. Ne2 {[%clk 0:00:49.5]} 31... Rdc8 {[%clk
0:00:53.4]} 32. Nd4 {[%clk 0:00:49.7]} 32... Ne4 {[%clk 0:00:42.5]} 33. Rfd1
{[%clk 0:00:07.4]} 33... Nxc4 {[%clk 0:00:37.2]} 34. Bd7 {[%clk 0:00:07.8]}
34... Rcb8 {[%clk 0:00:17.8]} 35. Rbc1 {[%clk 0:00:08.3]} 35... Ne5 {[%clk
0:00:16.9]} 36. Rc7 {[%clk 0:00:08]} 36... Kh6 {[%clk 0:00:16.8]} 37. Bb5 {[%clk
0:00:07.4]} 37... Rc8 {[%clk 0:00:15.6]} 38. Rdc1 {[%clk 0:00:07.5]} 38... Rxc7
{[%clk 0:00:15.8]} 39. Rxc7 {[%clk 0:00:08.4]} 39... Rf8 {[%clk 0:00:15.2]} 40.
Rxb7 {[%clk 0:00:08.2]} 40... f4 {[%clk 0:00:14.6]} 41. Ne6 {[%clk 0:00:07.6]}
41... Rf6 {[%clk 0:00:13.3]} 42. Be2 {[%clk 0:00:07.7]} 42... f3 {[%clk
0:00:13.1]} 43. gxf3 {[%clk 0:00:08.2]} 43... Nxf3+ {[%clk 0:00:12.5]} 44. Bxf3
{[%clk 0:00:08.9]} 44... Rxf3 {[%clk 0:00:13.4]} 45. Rb4 {[%clk 0:00:09.3]}
45... Nd2 {[%clk 0:00:12.3]} 46. Rh4# {[%clk 0:00:09.6]} 1-0

[Event "*** Titled Tuesday Blitz"]
[Site "Chess.com"]
[Date "2021.03.02"]
[Round "3"]
[White "Taktikmonster"]
[Black "night_player"]
[Result "1-0"]
[WhiteElo "2382"]
[BlackElo "2186"]
[TimeControl "180+1"]
[EndTime "10:28:47 PST"]
[Termination "Taktikmonster won on time"]

1. e4 {[%clk 0:03:00.9]} 1... c5 {[%clk 0:02:57]} 2. Nf3 {[%clk 0:03:00.5]} 2...
Nc6 {[%clk 0:02:56.8]} 3. d4 {[%clk 0:03:01.1]} 3... cxd4 {[%clk 0:02:57.7]} 4.
Nxd4 {[%clk 0:03:01.8]} 4... e5 {[%clk 0:02:58]} 5. Nb5 {[%clk 0:03:01.5]} 5...
d6 {[%clk 0:02:58.2]} 6. N1c3 {[%clk 0:03:01.7]} 6... a6 {[%clk 0:02:58.2]} 7.
Na3 {[%clk 0:03:02]} 7... b5 {[%clk 0:02:59.1]} 8. Nd5 {[%clk 0:03:02.5]} 8...
Nce7 {[%clk 0:03:00]} 9. c4 {[%clk 0:02:57.7]} 9... bxc4 {[%clk 0:02:51.4]} 10.
Bxc4 {[%clk 0:02:48]} 10... Nxd5 {[%clk 0:02:39.3]} 11. Qxd5 {[%clk 0:02:48.9]}
11... Be6 {[%clk 0:02:36.6]} 12. Qc6+ {[%clk 0:02:47.8]} 12... Bd7 {[%clk
0:02:36]} 13. Qd5 {[%clk 0:02:46.5]} 13... Be6 {[%clk 0:02:36.1]} 14. Qd3 {[%clk
0:02:44.2]} 14... Nf6 {[%clk 0:02:31.3]} 15. Be3 {[%clk 0:02:30.5]} 15... Be7
{[%clk 0:02:28.8]} 16. O-O {[%clk 0:02:27.9]} 16... O-O {[%clk 0:02:29.2]} 17.
Rfd1 {[%clk 0:02:22.2]} 17... Ng4 {[%clk 0:02:00.4]} 18. Bxe6 {[%clk 0:01:58.6]}
18... fxe6 {[%clk 0:01:58.2]} 19. Nc4 {[%clk 0:01:54.7]} 19... Rc8 {[%clk
0:01:32.8]} 20. Nxd6 {[%clk 0:01:14]} 20... Bxd6 {[%clk 0:01:26.6]} 21. Qxd6
{[%clk 0:01:14.9]} 21... Qxd6 {[%clk 0:01:26.8]} 22. Rxd6 {[%clk 0:01:14.8]}
22... Nxe3 {[%clk 0:01:26.3]} 23. fxe3 {[%clk 0:01:15.7]} 23... Rc2 {[%clk
0:01:26.3]} 24. Rf1 {[%clk 0:01:06.4]} 24... Rxb2 {[%clk 0:01:19.2]} 25. Rxa6
{[%clk 0:00:56.6]} 25... Rxf1+ {[%clk 0:00:58.8]} 26. Kxf1 {[%clk 0:00:57.5]}
26... Kf7 {[%clk 0:00:59.4]} 27. Ra7+ {[%clk 0:00:50.7]} 27... Kf6 {[%clk
0:00:57.7]} 28. a4 {[%clk 0:00:50.5]} 28... Ra2 {[%clk 0:00:53.5]} 29. a5 {[%clk
0:00:49.8]} 29... h6 {[%clk 0:00:40.5]} 30. a6 {[%clk 0:00:49]} 30... g6 {[%clk
0:00:39.7]} 31. Ra8 {[%clk 0:00:49]} 31... Kg5 {[%clk 0:00:39.2]} 32. a7 {[%clk
0:00:42.5]} 32... h5 {[%clk 0:00:30.4]} 33. Ke1 {[%clk 0:00:34.1]} 33... Kh4
{[%clk 0:00:27]} 34. Kd1 {[%clk 0:00:30.5]} 34... g5 {[%clk 0:00:20.5]} 35. Kc1
{[%clk 0:00:30.1]} 35... g4 {[%clk 0:00:15.4]} 36. Kb1 {[%clk 0:00:29.1]} 36...
Ra6 {[%clk 0:00:13.2]} 37. Kc2 {[%clk 0:00:26.8]} 37... Ra2+ {[%clk 0:00:08.9]}
38. Kb3 {[%clk 0:00:26.6]} 38... Ra6 {[%clk 0:00:05.5]} 39. Kc4 {[%clk
0:00:26.5]} 39... Ra3 {[%clk 0:00:04.2]} 40. Kc5 {[%clk 0:00:25.9]} 40... Ra1
{[%clk 0:00:03.2]} 41. Kd6 {[%clk 0:00:25.7]} 41... Ra6+ {[%clk 0:00:02.8]} 42.
Kxe5 {[%clk 0:00:25.9]} 42... Ra5+ {[%clk 0:00:02.1]} 43. Kxe6 {[%clk
0:00:26.2]} 43... Ra6+ {[%clk 0:00:03]} 44. Kf5 {[%clk 0:00:25.6]} 44... Ra5+
{[%clk 0:00:02.3]} 45. e5 {[%clk 0:00:26]} 45... Ra6 {[%clk 0:00:02.6]} 46. e6
{[%clk 0:00:26]} 46... Ra5+ {[%clk 0:00:03.5]} 47. Kf6 {[%clk 0:00:26.1]} 47...
Ra1 {[%clk 0:00:01.4]} 48. e7 {[%clk 0:00:25.8]} 1-0

[Event "*** Titled Tuesday Blitz"]
[Site "Chess.com"]
[Date "2021.03.02"]
[Round "3"]
[White "AntonovaNadezhda"]
[Black "AniJak"]
[Result "1-0"]
[WhiteElo "2138"]
[BlackElo "2332"]
[TimeControl "180+1"]
[EndTime "10:28:48 PST"]
[Termination "AntonovaNadezhda won on time"]

1. d4 {[%clk 0:03:00.9]} 1... d5 {[%clk 0:02:58.3]} 2. Nf3 {[%clk 0:03:01.8]}
2... Nf6 {[%clk 0:02:57.7]} 3. e3 {[%clk 0:03:02.2]} 3... Bg4 {[%clk 0:02:54.4]}
4. h3 {[%clk 0:02:59]} 4... Bxf3 {[%clk 0:02:53.4]} 5. Qxf3 {[%clk 0:02:58.2]}
5... e6 {[%clk 0:02:54.3]} 6. Bd3 {[%clk 0:02:56.7]} 6... Nbd7 {[%clk
0:02:53.1]} 7. Qd1 {[%clk 0:02:53.4]} 7... Ne4 {[%clk 0:02:49.4]} 8. Nd2 {[%clk
0:02:51.8]} 8... f5 {[%clk 0:02:48.2]} 9. O-O {[%clk 0:02:50.8]} 9... Bd6 {[%clk
0:02:47.4]} 10. c4 {[%clk 0:02:42.7]} 10... c6 {[%clk 0:02:46.6]} 11. Nf3 {[%clk
0:02:38.7]} 11... O-O {[%clk 0:02:45]} 12. Qc2 {[%clk 0:02:35.9]} 12... Rc8
{[%clk 0:02:42.8]} 13. Rb1 {[%clk 0:02:33.2]} 13... Qf6 {[%clk 0:02:38.1]} 14.
b4 {[%clk 0:02:31.8]} 14... e5 {[%clk 0:02:26.1]} 15. dxe5 {[%clk 0:02:29.1]}
15... Nxe5 {[%clk 0:02:25.6]} 16. Nxe5 {[%clk 0:02:21.7]} 16... Qxe5 {[%clk
0:02:25.2]} 17. g3 {[%clk 0:02:16.6]} 17... dxc4 {[%clk 0:01:54.7]} 18. Bxc4+
{[%clk 0:02:09.8]} 18... Kh8 {[%clk 0:01:54.8]} 19. Bb2 {[%clk 0:02:08.4]} 19...
Qe7 {[%clk 0:01:50.4]} 20. a3 {[%clk 0:02:02]} 20... Rce8 {[%clk 0:01:40.9]} 21.
Rbd1 {[%clk 0:01:52.2]} 21... h5 {[%clk 0:01:14.5]} 22. Qe2 {[%clk 0:01:45.6]}
22... Qg5 {[%clk 0:01:10.1]} 23. h4 {[%clk 0:01:37.7]} 23... Qg6 {[%clk
0:01:07.2]} 24. Qf3 {[%clk 0:01:28]} 24... Be7 {[%clk 0:01:02.3]} 25. Kh2 {[%clk
0:01:20]} 25... Bf6 {[%clk 0:01:02.4]} 26. Bd4 {[%clk 0:01:13.7]} 26... Bxd4
{[%clk 0:00:54.4]} 27. Rxd4 {[%clk 0:01:12.6]} 27... Nf6 {[%clk 0:00:54.1]} 28.
Rfd1 {[%clk 0:01:03.3]} 28... Ng4+ {[%clk 0:00:54.1]} 29. Kg2 {[%clk 0:00:57.7]}
29... Ne5 {[%clk 0:00:46.8]} 30. Qf4 {[%clk 0:00:50.5]} 30... Qf6 {[%clk
0:00:43.5]} 31. Rd6 {[%clk 0:00:39.2]} 31... Qe7 {[%clk 0:00:35.2]} 32. Re6
{[%clk 0:00:27.4]} 32... Qc7 {[%clk 0:00:22.8]} 33. Red6 {[%clk 0:00:22.5]}
33... Qe7 {[%clk 0:00:15.7]} 34. Bb3 {[%clk 0:00:19.8]} 34... Ng4 {[%clk
0:00:15.2]} 35. Qf3 {[%clk 0:00:17]} 35... Kh7 {[%clk 0:00:12.4]} 36. Rd7 {[%clk
0:00:16.4]} 36... Qf6 {[%clk 0:00:10]} 37. Qf4 {[%clk 0:00:16.2]} 37... Ne5
{[%clk 0:00:04]} 38. R1d6 {[%clk 0:00:15.2]} 38... Nxd7 {[%clk 0:00:03]} 39.
Rxf6 {[%clk 0:00:15]} 39... Rxf6 {[%clk 0:00:02.7]} 40. Qg5 {[%clk 0:00:14.3]}
40... g6 {[%clk 0:00:02.1]} 41. Qf4 {[%clk 0:00:13.7]} 41... Ne5 {[%clk
0:00:01.8]} 42. Qd4 {[%clk 0:00:12.4]} 1-0

[Event "*** Titled Tuesday Blitz"]
[Site "Chess.com"]
[Date "2021.03.02"]
[Round "3"]
[White "publicaccountcze"]
[Black "jens1102"]
[Result "0-1"]
[WhiteElo "2212"]
[BlackElo "2411"]
[TimeControl "180+1"]
[EndTime "10:28:49 PST"]
[Termination "jens1102 won on time"]

1. d4 {[%clk 0:03:00.9]} 1... Nf6 {[%clk 0:02:58.7]} 2. c4 {[%clk 0:03:00.1]}
2... e6 {[%clk 0:02:58.6]} 3. Nc3 {[%clk 0:02:59.7]} 3... c5 {[%clk 0:02:59.1]}
4. e3 {[%clk 0:02:56.4]} 4... Nc6 {[%clk 0:02:24.5]} 5. Nf3 {[%clk 0:02:54.2]}
5... d5 {[%clk 0:02:24]} 6. a3 {[%clk 0:02:50.7]} 6... cxd4 {[%clk 0:02:17.1]}
7. Nxd4 {[%clk 0:02:44.5]} 7... Be7 {[%clk 0:02:18]} 8. cxd5 {[%clk 0:02:41.6]}
8... Nxd5 {[%clk 0:02:18.1]} 9. Nxc6 {[%clk 0:02:38.9]} 9... bxc6 {[%clk
0:02:18]} 10. Be2 {[%clk 0:02:35.4]} 10... Nxc3 {[%clk 0:02:16.9]} 11. Qxd8+
{[%clk 0:02:32.4]} 11... Bxd8 {[%clk 0:02:17.7]} 12. bxc3 {[%clk 0:02:32]} 12...
e5 {[%clk 0:02:17.9]} 13. Bf3 {[%clk 0:02:24.3]} 13... Bd7 {[%clk 0:02:14]} 14.
O-O {[%clk 0:02:23.4]} 14... Ba5 {[%clk 0:02:13.3]} 15. c4 {[%clk 0:02:20.2]}
15... f5 {[%clk 0:02:11.9]} 16. Bb2 {[%clk 0:01:55.7]} 16... Bc7 {[%clk
0:01:53.8]} 17. g3 {[%clk 0:01:36.6]} 17... O-O {[%clk 0:01:39.4]} 18. Rfd1
{[%clk 0:01:32.4]} 18... Rad8 {[%clk 0:01:35.6]} 19. Rxd7 {[%clk 0:01:10.9]}
19... Rxd7 {[%clk 0:01:32.5]} 20. Bxc6 {[%clk 0:01:10.2]} 20... Rd2 {[%clk
0:01:31.2]} 21. Bd5+ {[%clk 0:01:06.1]} 21... Kh8 {[%clk 0:01:29.7]} 22. Bc3
{[%clk 0:01:05.6]} 22... Rc2 {[%clk 0:01:25.8]} 23. Bb4 {[%clk 0:01:01.6]} 23...
Rd8 {[%clk 0:01:25.7]} 24. Be7 {[%clk 0:00:45.7]} 24... Re8 {[%clk 0:01:22]} 25.
Bc5 {[%clk 0:00:43.5]} 25... Rd8 {[%clk 0:01:17.9]} 26. Bxa7 {[%clk 0:00:40.7]}
26... Bd6 {[%clk 0:01:11]} 27. Bb6 {[%clk 0:00:38.9]} 27... Rb8 {[%clk 0:01:09]}
28. Ba5 {[%clk 0:00:27.2]} 28... Rbb2 {[%clk 0:01:08]} 29. Bb4 {[%clk 0:00:25]}
29... Bb8 {[%clk 0:00:58.3]} 30. Rf1 {[%clk 0:00:19.7]} 30... Ba7 {[%clk
0:00:57.1]} 31. c5 {[%clk 0:00:15.9]} 31... Bxc5 {[%clk 0:00:53.7]} 32. Bxc5
{[%clk 0:00:14.9]} 32... Rxc5 {[%clk 0:00:53.9]} 33. Be6 {[%clk 0:00:14.6]}
33... g6 {[%clk 0:00:51.9]} 34. Rd1 {[%clk 0:00:14.1]} 34... Rcc2 {[%clk
0:00:49.5]} 35. Rf1 {[%clk 0:00:11.1]} 35... Kg7 {[%clk 0:00:48.3]} 36. Bd7
{[%clk 0:00:10.4]} 36... e4 {[%clk 0:00:46.7]} 37. a4 {[%clk 0:00:09.6]} 37...
Ra2 {[%clk 0:00:46.7]} 38. Kg2 {[%clk 0:00:08.8]} 38... h5 {[%clk 0:00:46.5]}
39. Bb5 {[%clk 0:00:08.4]} 39... Kf6 {[%clk 0:00:45]} 40. h3 {[%clk 0:00:08.6]}
40... Kg5 {[%clk 0:00:41.9]} 41. Kg1 {[%clk 0:00:03.9]} 41... h4 {[%clk
0:00:38.6]} 42. Kg2 {[%clk 0:00:04.5]} 42... Rcb2 {[%clk 0:00:34.3]} 43. gxh4+
{[%clk 0:00:03.6]} 43... Kxh4 {[%clk 0:00:35.2]} 44. Kg1 {[%clk 0:00:02.7]}
44... Kxh3 {[%clk 0:00:33.6]} 45. Bd7 {[%clk 0:00:02.3]} 45... Kg4 {[%clk
0:00:32.7]} 46. Kg2 {[%clk 0:00:02]} 46... g5 {[%clk 0:00:32.7]} 47. Kh2 {[%clk
0:00:01.6]} 47... Rxf2+ {[%clk 0:00:31.9]} 48. Kg1 {[%clk 0:00:01]} 48... Rg2+
{[%clk 0:00:31.1]} 0-1

[Event "*** Titled Tuesday Blitz"]
[Site "Chess.com"]
[Date "2021.03.02"]
[Round "3"]
[White "EvgenyT"]
[Black "Abund"]
[Result "1-0"]
[WhiteElo "2924"]
[BlackElo "2675"]
[TimeControl "180+1"]
[EndTime "10:28:55 PST"]
[Termination "EvgenyT won on time"]

1. Nf3 {[%clk 0:03:00.9]} 1... d6 {[%clk 0:02:43]} 2. e4 {[%clk 0:02:59.5]} 2...
e5 {[%clk 0:02:28.4]} 3. d4 {[%clk 0:02:58.2]} 3... Nd7 {[%clk 0:02:25]} 4. Bc4
{[%clk 0:02:57.1]} 4... c6 {[%clk 0:02:18.1]} 5. O-O {[%clk 0:02:55.7]} 5... Be7
{[%clk 0:02:16.4]} 6. Re1 {[%clk 0:02:52.9]} 6... Ngf6 {[%clk 0:02:15.7]} 7. Bf1
{[%clk 0:02:52.5]} 7... O-O {[%clk 0:02:15.3]} 8. c4 {[%clk 0:02:52.4]} 8... Qc7
{[%clk 0:02:09.5]} 9. Nc3 {[%clk 0:02:52.1]} 9... Re8 {[%clk 0:02:08.7]} 10. g3
{[%clk 0:02:42.5]} 10... Bf8 {[%clk 0:02:05.6]} 11. Bg2 {[%clk 0:02:42.3]} 11...
a6 {[%clk 0:02:02.3]} 12. d5 {[%clk 0:02:24.5]} 12... c5 {[%clk 0:01:56.5]} 13.
Nh4 {[%clk 0:02:20.1]} 13... g6 {[%clk 0:01:55.4]} 14. f4 {[%clk 0:02:19.6]}
14... exf4 {[%clk 0:01:48.3]} 15. gxf4 {[%clk 0:02:19.3]} 15... Bg7 {[%clk
0:01:45.5]} 16. Nf3 {[%clk 0:02:16.8]} 16... b5 {[%clk 0:01:41.5]} 17. e5 {[%clk
0:02:08.9]} 17... Nh5 {[%clk 0:01:27.5]} 18. e6 {[%clk 0:01:29.3]} 18... Nb6
{[%clk 0:00:56]} 19. f5 {[%clk 0:01:21.6]} 19... Nxc4 {[%clk 0:00:50.6]} 20. Ng5
{[%clk 0:01:21.1]} 20... Bd4+ {[%clk 0:00:39.5]} 21. Kh1 {[%clk 0:01:20.3]}
21... f6 {[%clk 0:00:39.4]} 22. Nge4 {[%clk 0:01:15.3]} 22... Ng7 {[%clk
0:00:33.2]} 23. fxg6 {[%clk 0:01:08.2]} 23... hxg6 {[%clk 0:00:33.3]} 24. Qg4
{[%clk 0:01:04]} 24... f5 {[%clk 0:00:30.2]} 25. Qxg6 {[%clk 0:01:03.5]} 25...
fxe4 {[%clk 0:00:23.6]} 26. Nxe4 {[%clk 0:01:03.9]} 26... Bxe6 {[%clk
0:00:14.3]} 27. dxe6 {[%clk 0:00:44.2]} 27... Rxe6 {[%clk 0:00:14.3]} 28. Qg3
{[%clk 0:00:43.3]} 28... Rae8 {[%clk 0:00:13.2]} 29. Bf4 {[%clk 0:00:35.4]}
29... Qe7 {[%clk 0:00:12.6]} 30. Bg5 {[%clk 0:00:32.1]} 30... Qf7 {[%clk
0:00:08.2]} 31. Rf1 {[%clk 0:00:31]} 31... Qg6 {[%clk 0:00:07.3]} 32. Nc3 {[%clk
0:00:21.2]} 32... Nf5 {[%clk 0:00:07.6]} 33. Qf4 {[%clk 0:00:17.4]} 33... Nfe3
{[%clk 0:00:07.8]} 34. Bd5 {[%clk 0:00:14.5]} 34... Nxf1 {[%clk 0:00:04.6]} 35.
Rxf1 {[%clk 0:00:13.8]} 35... Ne3 {[%clk 0:00:04.9]} 36. Bxe6+ {[%clk
0:00:12.9]} 36... Qxe6 {[%clk 0:00:05.6]} 37. Rg1 {[%clk 0:00:12.8]} 37... Kh7
{[%clk 0:00:03.7]} 38. Qh4+ {[%clk 0:00:12.6]} 38... Kg8 {[%clk 0:00:03.4]} 39.
Bf6+ {[%clk 0:00:12.8]} 39... Ng4 {[%clk 0:00:01.5]} 40. Rxg4+ {[%clk
0:00:12.4]} 40... Kf7 {[%clk 0:00:01.1]} 41. Rg7+ {[%clk 0:00:12.4]} 41... Kf8
{[%clk 0:00:01.2]} 42. Qh8+ {[%clk 0:00:12.6]} 1-0